bitfinex/quotes_SOLUSD_20251025
["timestamp","ask_amount","ask_price","bid_price","bid_amount"]
[1761389131189,117.3311059,192.12,192.09,36.75]
[1761389131389,117.3311059,192.12,192.1,0.67]
[1761389131994,101.7,192.12,192.1,5.87553143]
[1761389135778,101.7,192.12,192.11,0.67]
[1761389136889,101.7,192.12,192.1,5.20553143]
[1761389137590,102.39,192.12,192.1,5.20553143]
[1761389137889,101.7,192.12,192.1,5.20553143]
[1761389138572,101.7,192.12,192.09,0.67]
[1761389138794,101.7,192.12,192.1,36.75]
[1761389139594,101.7,192.12,192.11,5.2053511]
[1761389140881,102.39,192.12,192.11,5.2053511]
[1761389141198,102.39,192.12,192.11,41.2853511]
[1761389141795,101.7,192.12,192.11,41.2853511]
[1761389142683,33.75647521,192.15,192.11,41.2853511]
[1761389142684,26.17186728,192.15,192.11,41.9553511]
[1761389142883,23.57,192.15,192.11,41.9553511]
[1761389143200,23.57,192.15,192.12,0.67]
[1761389143776,14.16834249,192.17,192.12,0.67]
[1761389144086,4.55576052,192.16,192.12,0.67]
[1761389144798,4.55576052,192.16,192.13,5.20480924]
[1761389145399,4.55576052,192.16,192.13,5.87480924]
[1761389145702,4.55576052,192.16,192.13,5.20480924]
[1761389145902,7.1576278,192.16,192.13,5.20480924]
[1761389146197,3.29186728,192.16,192.13,5.20480924]
[1761389146583,0.69,192.16,192.13,5.87480924]
[1761389146775,4.5555543,192.16,192.13,5.87480924]
[1761389147885,4.5555543,192.16,192.13,5.20480924]
[1761389148294,4.5555543,192.16,192.13,5.87480924]
[1761389148800,4.5555543,192.16,192.12,5.20508015]
[1761389149000,4.5555543,192.16,192.12,5.87508015]
[1761389149604,4.5555543,192.16,192.13,0.67]
[1761389149909,4.5555543,192.16,192.12,5.87508015]
[1761389151006,4.5555543,192.16,192.12,5.86508015]
[1761389151383,4.5555543,192.16,192.13,0.66]
[1761389151702,3.8655543,192.16,192.13,0.66]
[1761389152010,2.3843827,192.17,192.13,0.66]
[1761389152506,0.72,192.17,192.14,5.20453835]
[1761389152698,6.25249775,192.17,192.14,5.20453835]
[1761389152895,2.3843827,192.17,192.14,5.20453835]
[1761389153399,3.8685016,192.16,192.14,5.20453835]
[1761389153914,3.8685016,192.16,192.12,5.20508015]
[1761389154204,3.8685016,192.16,192.14,0.66]
[1761389154602,126.2443827,192.18,192.14,36.7]
[1761389154810,3.86847859,192.17,192.14,36.7]
[1761389154983,126.2443827,192.18,192.14,36.7]
[1761389155190,0.72,192.17,192.14,36.04]
[1761389155707,0.72,192.17,192.14,36.7]
[1761389156108,22.88,192.16,192.15,5.86426749]
[1761389156511,102.42,192.18,192.15,5.86426749]
[1761389157095,101.7,192.18,192.16,0.66]
[1761389157288,101.7,192.18,192.15,5.86426749]
[1761389157495,102.42,192.18,192.15,5.86426749]
[1761389158414,101.7,192.18,192.15,5.86426749]
[1761389158821,102.39,192.18,192.15,5.86426749]
[1761389159312,101.7,192.18,192.15,5.20426749]
[1761389159624,101.7,192.18,192.16,0.67]
[1761389159820,101.7,192.18,192.17,36.04]
[1761389160008,105.56964705,192.18,192.17,36.71]
[1761389160335,1.6643827,192.21,192.17,36.71]
[1761389160507,3.87024829,192.2,192.18,0.67]
[1761389160704,3.87024829,192.19,192.18,0.67]
[1761389161027,36.11085791,192.22,192.18,0.67]
[1761389161028,34.44647521,192.22,192.18,0.67]
[1761389161327,3.86948052,192.21,192.18,0.67]
[1761389161537,36.11085791,192.22,192.19,5.20318434]
[1761389161538,22.88,192.22,192.19,5.20318434]
[1761389161828,24.5443827,192.22,192.18,5.20342121]
[1761389162000,12.54085791,192.2,192.14,13.01074037]
[1761389162322,1.6643827,192.15,192.11,13.01294838]
[1761389162524,1.6643827,192.14,192.12,36.04]
[1761389162728,1.6643827,192.14,192.11,41.2853511]
[1761389163031,2.3543827,192.14,192.11,41.2853511]
[1761389163204,1.6643827,192.14,192.11,41.9553511]
[1761389164420,2.3543827,192.15,192.11,41.9553511]
[1761389164623,1.6643827,192.14,192.11,41.9553511]
[1761389165003,0.69,192.15,192.11,36.08]
[1761389165004,1.6643827,192.13,192.11,36.08]
[1761389165326,10.87647521,192.11,192.05,0.67]
[1761389165534,1.6643827,192.08,192.06,36.08]
[1761389165705,1.6643827,192.09,192.06,36.08]
[1761389165902,1.6643827,192.09,192.06,36.75]
[1761389167008,1.6643827,192.09,192.06,41.95648901]
[1761389168131,2.3543827,192.09,192.06,41.95648901]
[1761389169821,2.3543827,192.09,192.06,41.28648901]
[1761389170941,1.6643827,192.09,192.06,41.95648901]
[1761389171317,1.6643827,192.1,192.07,0.67]
[1761389171712,2.3543827,192.11,192.07,0.67]
[1761389172032,101.7,192.12,192.07,2.3343827]
[1761389172201,103.3643827,192.12,192.07,0.67]
[1761389172529,104.0543827,192.12,192.08,0.67]
[1761389172720,1.6643827,192.11,192.09,36.08]
[1761389173411,1.6643827,192.11,192.09,41.28588699]
[1761389175432,103.3643827,192.12,192.09,41.95588699]
[1761389175731,104.0543827,192.12,192.09,41.28588699]
[1761389175916,1.6643827,192.11,192.09,41.28588699]
[1761389176318,102.39,192.12,192.09,41.28588699]
[1761389176518,1.6643827,192.11,192.09,41.95588699]
[1761389177031,103.3643827,192.12,192.09,41.95588699]
[1761389177334,101.7,192.12,192.1,0.67]
[1761389179029,101.7,192.12,192.11,5.2053511]
[1761389179543,101.7,192.12,192.11,5.8753511]
[1761389181141,101.7,192.12,192.11,5.2053511]
[1761389181521,101.7,192.12,192.11,5.8753511]
[1761389182735,1.6643827,192.14,192.11,5.8753511]
[1761389182934,2.3343827,192.14,192.11,5.8753511]
[1761389183137,2.3343827,192.14,192.11,5.2053511]
[1761389184936,22.88,192.15,192.11,41.2653511]
[1761389184937,2.3343827,192.13,192.11,41.2653511]
[1761389185659,2.3343827,192.13,192.1,36.06]
[1761389185864,1.6643827,192.11,192.09,5.20562907]
[1761389186067,1.6643827,192.11,192.1,36.06]
[1761389186219,1.6643827,192.11,192.05,13.68705994]
[1761389186220,0.67,192.1,192.05,13.68705994]
[1761389186547,1.6643827,192.08,192.07,36.08]
[1761389186846,1.6643827,192.09,192.07,36.08]
[1761389188037,1.6643827,192.09,192.07,41.28642364]
[1761389188343,2.3343827,192.09,192.07,41.28642364]
[1761389189726,0.67,192.09,192.07,41.28642364]
[1761389190624,1.6643827,192.1,192.07,41.28642364]
[1761389190949,1.6643827,192.1,192.07,41.95642364]
[1761389191449,10.87647521,192.11,192.08,0.67]
[1761389191653,22.88,192.12,192.08,0.67]
[1761389192647,22.88,192.12,192.09,5.20589307]
[1761389193160,22.88,192.12,192.09,5.87589307]
[1761389193753,23.55,192.12,192.09,5.87589307]
[1761389195626,23.55,192.12,192.09,5.20589307]
[1761389197135,23.55,192.12,192.09,5.87589307]
[1761389197358,23.55,192.12,192.08,5.20610181]
[1761389197672,2.3343827,192.11,192.08,5.87610181]
[1761389198958,1.6643827,192.11,192.08,5.87610181]
[1761389199160,1.6643827,192.12,192.08,5.87610181]
[1761389199354,0.67,192.12,192.08,5.87610181]
[1761389199554,2.3343827,192.12,192.08,5.87610181]
[1761389200268,2.98501771,192.12,192.08,5.87610181]
[1761389200859,2.3343827,192.11,192.08,41.26610181]
[1761389201067,0.67,192.1,192.08,41.26610181]
[1761389201382,1.6643827,192.11,192.08,41.26610181]
[1761389201566,2.3343827,192.11,192.08,41.26610181]
[1761389202694,10.87647521,192.12,192.09,0.67]
[1761389203562,10.87647521,192.12,192.08,41.26610181]
[1761389203880,13.86149292,192.12,192.08,41.93610181]
[1761389204371,1.6643827,192.1,192.08,41.26610181]
[1761389204551,1.6643827,192.1,192.08,36.06]
[1761389204753,2.3343827,192.1,192.08,36.06]
[1761389205783,2.3343827,192.1,192.04,13.01753485]
[1761389205784,2.3343827,192.1,192.06,41.93670623]
[1761389205975,2.3343827,192.1,192.07,36.06]
[1761389206176,0.67,192.09,192.07,36.06]
[1761389206483,11.52711022,192.12,192.07,36.06]
[1761389206782,11.52711022,192.12,192.08,5.20616409]
[1761389206783,2.3343827,192.1,192.08,5.20616409]
[1761389207169,0.67,192.09,192.08,5.20616409]
[1761389207368,1.6643827,192.1,192.08,5.20616409]
[1761389207568,2.3343827,192.1,192.08,5.20616409]
[1761389209284,0.67,192.09,192.08,5.20616409]
[1761389210384,2.3443827,192.1,192.08,5.20616409]
[1761389210686,2.6024844,192.1,192.08,5.20616409]
[1761389210872,2.6024844,192.1,192.08,5.88616409]
[1761389211187,2.6024844,192.11,192.08,5.88616409]
[1761389211578,3.2824844,192.11,192.08,5.88616409]
[1761389212087,0.68,192.11,192.08,5.88616409]
[1761389212582,0.68,192.11,192.08,5.20616409]
[1761389212774,3.2824844,192.11,192.08,5.20616409]
[1761389212978,0.68,192.11,192.08,5.20616409]
[1761389213176,3.2824844,192.11,192.08,5.20616409]
[1761389214091,3.2824844,192.1,192.07,41.26641365]
[1761389214264,0.68,192.1,192.07,41.26641365]
[1761389214679,29.11169455,192.11,192.07,41.94641365]
[1761389214894,14.15895961,192.11,192.07,41.94641365]
[1761389215065,13.47895961,192.11,192.08,0.68]
[1761389217583,0.65070275,192.1,192.08,0.68]
[1761389217787,3.25318715,192.1,192.07,41.26641365]
[1761389217993,3.25318715,192.1,192.07,41.94641365]
[1761389219493,0.71,192.09,192.05,5.20697734]
[1761389219668,3.3124844,192.09,192.06,36.04]
[1761389219997,3.3124844,192.09,192.06,36.7]
[1761389220384,2.6024844,192.09,192.06,36.7]
[1761389220892,2.6024844,192.09,192.07,5.20643515]
[1761389221472,3.96318715,192.1,192.07,5.20643515]
[1761389221771,2.6024844,192.1,192.07,5.86643515]
[1761389221981,3.3124844,192.1,192.07,5.86643515]
[1761389222600,3.3124844,192.1,192.07,5.20643515]
[1761389224792,3.3124844,192.1,192.07,5.86643515]
[1761389225194,14.12962849,192.11,192.08,0.66]
[1761389225388,10.87647521,192.11,192.08,0.66]
[1761389225994,10.87647521,192.12,192.08,0.66]
[1761389227011,102.41,192.13,192.09,5.20589307]
[1761389227295,105.66308555,192.13,192.09,5.20589307]
[1761389227498,105.0124844,192.13,192.09,5.86589307]
[1761389228485,104.3024844,192.13,192.09,5.86589307]
[1761389228693,0.71,192.12,192.09,5.86589307]
[1761389230002,104.3024844,192.13,192.1,0.66]
[1761389230298,105.0124844,192.13,192.09,0.66]
[1761389230503,10.87647521,192.09,192.05,5.20697734]
[1761389230696,10.87647521,192.05,192.01,5.20789071]
[1761389230883,2.6024844,192.04,192.01,5.86789071]
[1761389231412,2.6024844,192.04,192.02,0.66]
[1761389231909,2.6024844,192.04,192.03,5.20751965]
[1761389232278,7.18413675,192.04,192.03,5.20751965]
[1761389233415,7.18413675,192.04,192.01,5.20806208]
[1761389233578,10.87647521,192.01,191.99,0.1]
[1761389233773,17.35061196,192.0,191.99,0.1]
[1761389233976,18.06061196,192.0,191.99,0.1]
[1761389234774,18.71165362,192.0,191.99,0.1]
[1761389235708,18.06061196,192.0,191.99,0.1]
[1761389238585,15.45812756,192.0,191.99,0.1]
[1761389238784,18.06061196,192.0,191.99,0.1]
[1761389240102,11.58647521,192.0,191.99,0.1]
[1761389240284,14.18895961,192.0,191.99,0.1]
[1761389241613,1.99999999,192.16,191.99,88.71357341]
[1761389241792,3.84975801,192.15,192.03,22.88]
[1761389242111,3.85186664,192.14,192.04,70.62185307]
[1761389242284,2.6024844,192.13,192.07,2.6024844]
[1761389242610,2.6024844,192.13,192.08,3.8790413]
[1761389242814,2.6024844,192.13,192.09,3.8790413]
[1761389243000,2.6024844,192.13,192.1,3.8790413]
[1761389243201,2.6024844,192.13,192.11,3.8790413]
[1761389243398,2.6024844,192.12,192.1,5.20548228]
[1761389243610,3.2724844,192.12,192.1,5.20548228]
[1761389243926,10.87647521,192.11,192.08,5.20594906]
[1761389244218,2.6024844,192.13,192.08,5.90594906]
[1761389244719,3.2724844,192.13,192.08,5.90594906]
[1761389245395,0.67,192.13,192.08,5.90594906]
[1761389245715,0.67,192.13,192.09,9.78490358]
[1761389245899,0.67,192.13,192.1,3.87913969]
[1761389246101,0.67,192.13,192.11,3.87913969]
[1761389246407,0.67,192.13,192.09,5.90576389]
[1761389246606,0.67,192.13,192.1,9.08468356]
[1761389246808,0.67,192.13,192.11,3.87907537]
[1761389247003,0.67,192.13,192.1,5.20560819]
[1761389247204,10.87647521,192.14,192.11,3.87907514]
[1761389247513,0.67,192.13,192.1,5.20560819]
[1761389247711,0.67,192.13,192.11,3.87905066]
[1761389247897,10.87647521,192.11,192.1,5.20560819]
[1761389248215,10.87647521,192.11,192.1,9.08465982]
[1761389253622,10.87647521,192.11,192.09,5.20589307]
[1761389253810,10.87647521,192.11,192.09,5.90589307]
[1761389254214,10.87647521,192.11,192.09,5.20589307]
[1761389255404,10.87647521,192.11,192.09,0.7]
[1761389257501,10.87647521,192.11,192.1,5.20562207]
[1761389259821,101.7,192.12,192.1,5.90562207]
[1761389260136,101.7,192.12,192.11,0.7]
[1761389260427,101.7,192.12,192.1,5.90562207]
[1761389261016,101.7,192.12,192.11,5.9053511]
[1761389268122,102.37,192.12,192.11,5.2053511]
[1761389268439,102.37,192.12,192.08,41.52616409]
[1761389268625,101.7,192.12,192.09,0.7]
[1761389269029,102.37,192.12,192.08,41.52616409]
[1761389269222,101.7,192.12,192.08,41.52616409]
[1761389269424,101.7,192.12,192.09,0.7]
[1761389270027,101.7,192.12,192.09,5.90571915]
[1761389270232,102.36,192.12,192.09,5.90571915]
[1761389270425,102.36,192.12,192.09,5.20571915]
[1761389270738,102.36,192.12,192.09,5.87571915]
[1761389271133,101.7,192.12,192.09,5.87571915]
[1761389272740,101.7,192.12,192.08,41.52613096]
[1761389272741,11.53647521,192.11,192.08,41.52613096]
[1761389275126,10.87647521,192.09,192.02,0.52077908]
[1761389275443,1.66537725,192.06,192.02,0.67]
[1761389275626,1.66537725,192.05,192.02,0.67]
[1761389276340,1.66537725,192.05,192.03,5.20751965]
[1761389276528,1.66537725,192.04,192.0,13.69035033]
[1761389276729,1.66537725,192.04,192.01,0.67]
[1761389276934,1.66537725,192.04,192.01,5.87806208]
[1761389277241,2.32537725,192.04,192.01,5.20806208]
[1761389277741,2.32537725,192.03,192.0,5.2082879]
[1761389278038,1.66537725,192.03,192.0,5.2082879]
[1761389278249,0.66,192.02,192.0,5.2082879]
[1761389278416,1.66537725,192.03,192.0,5.2082879]
[1761389278618,2.32537725,192.03,192.0,5.2082879]
[1761389278839,1.66537725,192.02,192.0,5.2082879]
[1761389279714,2.35537725,192.02,192.0,5.2082879]
[1761389279919,0.69,192.02,192.0,5.2082879]
[1761389280118,2.35537725,192.02,192.0,5.2082879]
[1761389280618,1.66537725,192.02,192.0,5.2082879]
[1761389280819,12.54185246,192.03,192.0,5.2082879]
[1761389281019,13.23185246,192.03,192.0,5.2082879]
[1761389281325,10.87647521,192.03,192.0,5.2082879]
[1761389281638,10.87647521,192.03,192.01,0.72]
[1761389282544,101.7,192.04,192.01,0.72]
[1761389283420,101.7,192.04,192.02,5.20779085]
[1761389284220,101.7,192.04,192.03,0.72]
[1761389284944,101.7,192.04,192.02,5.20779085]
[1761389285242,104.05537725,192.04,192.02,5.20779085]
[1761389285442,104.05537725,192.04,191.99,13.84136579]
[1761389285443,2.35537725,192.03,192.0,5.20833333]
[1761389285634,1.66537725,192.02,192.0,5.20833333]
[1761389285832,1.66537725,192.02,192.0,5.92833333]
[1761389286459,101.7,192.04,192.0,5.92833333]
[1761389286460,1.66537725,192.03,192.0,5.92833333]
[1761389287445,2.35537725,192.03,192.0,5.20833333]
[1761389288843,2.35537725,192.03,192.0,5.92833333]
[1761389289151,2.35537725,192.03,192.0,5.20833333]
[1761389289749,1.66537725,192.01,191.99,0.1]
[1761389290148,2.35537725,192.0,191.99,0.1]
[1761389290727,1.66537725,192.01,191.99,5.30860461]
[1761389291850,1.66537725,192.01,191.99,6.02860461]
[1761389292039,12.54185246,192.03,192.0,5.92827986]
[1761389292840,101.7,192.04,192.01,0.72]
[1761389293052,103.36537725,192.04,192.01,0.72]
[1761389293558,101.7,192.04,192.01,0.72]
[1761389294155,101.7,192.04,192.02,5.20779085]
[1761389295253,103.36537725,192.04,192.02,5.20779085]
[1761389295860,103.36537725,192.04,192.02,5.92779085]
[1761389296233,103.36537725,192.04,192.03,0.72]
[1761389296439,103.36537725,192.04,192.02,5.20779085]
[1761389297353,101.7,192.04,192.02,5.20779085]
[1761389297565,103.36537725,192.04,192.01,5.20806208]
[1761389297744,2.35537725,192.03,192.01,5.20806208]
[1761389298152,101.7,192.04,192.01,5.20806208]
[1761389298153,2.35537725,192.02,192.01,5.20806208]
[1761389298664,1.66537725,192.03,192.01,5.20806208]
[1761389298854,2.35537725,192.03,192.01,5.20806208]
[1761389300661,1.66537725,192.03,192.01,5.20806208]
[1761389300865,103.36537725,192.04,192.01,5.20806208]
[1761389301053,103.36537725,192.04,192.01,5.92806208]
[1761389301257,101.7,192.04,192.02,0.72]
[1761389302259,101.7,192.04,192.03,36.28]
[1761389302659,101.7,192.04,192.03,37.0]
[1761389303367,101.7,192.04,192.03,42.20751965]
[1761389306769,101.7,192.04,192.03,41.48751965]
[1761389307768,101.7,192.04,192.03,5.92751965]
[1761389308068,102.4,192.04,192.02,5.20775587]
[1761389308263,2.36537725,192.03,192.02,5.20775587]
[1761389308852,2.36537725,192.03,191.99,0.82]
[1761389308853,2.36537725,192.03,192.0,5.20833333]
[1761389309051,2.36537725,192.02,192.0,5.20833333]
[1761389309365,1.66537725,192.01,191.99,41.58854753]
[1761389309663,2.36537725,192.01,191.99,0.1]
[1761389309877,2.36537725,192.0,191.99,0.1]
[1761389310369,13.24185246,192.0,191.99,0.1]
[1761389325572,12.54185246,192.0,191.99,0.1]
[1761389325981,12.54185246,192.0,191.99,6.02860461]
[1761389326175,10.87647521,192.0,191.99,6.02860461]
[1761389326387,1.66537725,192.01,191.99,6.02860461]
[1761389326788,1.66537725,192.01,191.99,5.30860461]
[1761389327283,1.66537725,192.01,191.99,6.02860461]
[1761389327780,1.66537725,192.01,191.99,5.30860461]
[1761389328877,1.66537725,192.0,191.99,0.1]
[1761389332807,2.60517717,192.0,191.99,0.1]
[1761389334205,14.19165238,192.0,191.99,0.1]
[1761389338117,19.39998571,192.0,191.99,0.1]
[1761389338702,14.19165238,192.0,191.99,0.1]
[1761389339612,19.39998571,192.0,191.99,0.1]
[1761389339816,22.00516288,192.0,191.99,0.1]
[1761389340519,24.09104925,192.0,191.99,0.1]
[1761389344219,36.36165238,191.98,191.97,0.1]
[1761389344398,72.58165238,191.98,191.97,0.1]
[1761389344712,73.29165238,191.98,191.97,0.1]
[1761389344919,39.15786512,191.98,191.97,0.1]
[1761389345114,78.5005283,191.98,191.97,0.1]
[1761389345999,81.20548643,191.98,191.97,0.1]
[1761389346199,83.8106636,191.98,191.97,0.1]
[1761389346510,78.5005283,191.98,191.97,0.1]
[1761389354797,82.36880333,191.98,191.97,0.1]
[1761389355412,59.48880333,191.98,191.97,0.1]
[1761389355829,59.48935834,191.98,191.97,0.1]
[1761389356212,61.57557108,191.98,191.97,0.1]
[1761389356534,59.48935834,191.98,191.97,0.1]
[1761389356719,61.57567989,191.98,191.97,0.1]
[1761389357836,61.55567989,191.98,191.97,0.1]
[1761389358235,25.35567989,191.98,191.97,0.1]
[1761389358531,61.55567989,191.98,191.97,0.1]
[1761389359127,25.35567989,191.98,191.97,0.1]
[1761389359311,61.55567989,191.98,191.97,0.1]
[1761389360748,5.20969002,191.95,191.93,0.1]
[1761389360918,127.48517717,191.94,191.93,0.78]
[1761389363347,127.48517717,191.94,191.93,0.1]
[1761389366743,25.48517717,191.94,191.93,0.1]
[1761389367248,22.88,191.94,191.93,0.1]
[1761389367445,25.48517717,191.94,191.93,0.1]
[1761389368955,15.10889934,191.98,191.93,0.1]
[1761389369155,10.87647521,191.94,191.93,0.78]
[1761389370326,13.48165238,191.94,191.93,0.78]
[1761389371363,10.87647521,191.94,191.93,0.78]
[1761389371658,13.48165238,191.94,191.93,0.78]
[1761389372052,10.87647521,191.94,191.93,0.78]
[1761389373147,2.60517717,191.96,191.93,5.99011823]
[1761389373351,22.88,191.97,191.93,5.99011823]
[1761389373664,10.87647521,191.97,191.94,0.68]
[1761389374026,33.75647521,191.97,191.94,0.68]
[1761389374353,2.60517717,192.0,191.94,0.68]
[1761389374656,14.74627521,191.99,191.94,16.32170077]
[1761389374829,10.87647521,191.99,191.94,16.32170077]
[1761389375030,10.87647521,191.99,191.95,0.68]
[1761389375232,10.87647521,191.99,191.96,5.20941862]
[1761389375836,10.87647521,191.99,191.97,0.68]
[1761389378554,113.07647521,191.99,191.97,0.68]
[1761389385456,115.68165238,191.99,191.97,0.68]
[1761389387272,113.07647521,191.99,191.97,0.68]
[1761389387475,115.68165238,191.99,191.97,0.68]
[1761389389279,113.07647521,191.99,191.97,0.68]
[1761389389664,102.2,191.99,191.97,5.88906809]
[1761389390061,102.2,191.99,191.98,0.67]
[1761389394486,102.2,191.99,191.98,5.87887592]
[1761389395993,102.2,191.99,191.98,0.67]
[1761389396369,103.86723071,191.99,191.98,0.67]
[1761389397882,103.86723071,191.99,191.96,0.67]
[1761389398084,1.66723071,191.98,191.96,0.67]
[1761389399971,1.66723071,191.98,191.96,5.87940886]
[1761389400604,103.86723071,191.99,191.97,0.67]
[1761389407830,102.2,191.99,191.97,0.67]
[1761389408019,103.86723071,191.99,191.97,0.67]
[1761389409295,103.86723071,191.99,191.94,5.20996144]
[1761389409493,103.86723071,191.99,191.96,0.67]
[1761389409703,1.66723071,191.97,191.94,5.87996144]
[1761389409904,1.66723071,191.95,191.93,0.1]
[1761389410108,1.66723071,191.94,191.93,0.1]
[1761389410311,2.36723071,191.94,191.93,0.1]
[1761389410785,13.24370592,191.94,191.93,0.1]
[1761389412186,17.12372329,191.94,191.93,0.1]
[1761389414411,17.12271187,191.94,191.93,0.1]
[1761389414710,107.40970735,191.95,191.93,5.98023289]
[1761389414711,102.2,191.95,191.93,5.98023289]
[1761389415109,113.07647521,191.95,191.94,0.67]
[1761389415411,102.2,191.95,191.94,0.67]
[1761389418198,102.2,191.95,191.94,5.87996144]
[1761389427633,102.2,191.95,191.94,42.01996144]
[1761389430319,102.2,191.95,191.94,43.68719215]
[1761389432131,103.86723071,192.0,191.94,56.71209576]
[1761389432324,103.86723071,192.0,191.95,0.66]
[1761389432826,104.54723071,192.0,191.95,0.66]
[1761389434526,104.54723071,192.0,191.96,5.20941862]
[1761389435032,104.54723071,192.0,191.96,5.86941862]
[1761389435637,103.86723071,192.0,191.96,5.20941862]
[1761389435940,102.2,192.0,191.97,42.00899652]
[1761389436319,102.2,192.0,191.98,0.66]
[1761389436915,102.2,192.0,191.97,41.34899652]
[1761389437114,102.88,192.0,191.97,42.00899652]
[1761389437315,104.54723071,192.0,191.97,42.00899652]
[1761389437540,104.54723071,192.0,191.97,41.34899652]
[1761389438130,1.66723071,191.99,191.97,41.34899652]
[1761389438626,1.66723071,191.99,191.97,5.20899652]
[1761389439140,0.68,191.98,191.96,5.20940075]
[1761389439447,1.66723071,191.97,191.94,41.34996144]
[1761389439831,2.34723071,191.97,191.94,41.34996144]
[1761389441033,2.34723071,191.97,191.94,5.20996144]
[1761389441256,2.34723071,191.97,191.94,41.34996144]
[1761389442727,102.2,192.0,191.94,41.34996144]
[1761389442935,1.66723071,191.98,191.94,42.00996144]
[1761389443239,2.34723071,191.98,191.95,0.66]
[1761389443545,0.68,191.97,191.95,5.20964344]
[1761389443840,2.34723071,191.98,191.95,5.20964344]
[1761389444019,2.34723071,191.98,191.95,5.86964344]
[1761389445037,1.66723071,191.97,191.95,5.20964344]
[1761389445945,2.34723071,191.97,191.95,5.20964344]
[1761389446540,2.34723071,191.96,191.93,41.45021269]
[1761389446718,1.66723071,191.94,191.93,41.45021269]
[1761389447137,2.34723071,191.95,191.93,41.45021269]
[1761389448338,1.66723071,191.96,191.93,41.45021269]
[1761389448540,2.34723071,191.96,191.93,5.97021269]
[1761389448744,2.34723071,191.96,191.93,42.11021269]
[1761389449038,2.34723071,191.96,191.93,41.45021269]
[1761389449241,1.66723071,191.95,191.93,41.45021269]
[1761389450657,1.66723071,191.94,191.93,36.24]
[1761389450844,2.34723071,191.94,191.93,0.1]
[1761389451341,1.66723071,191.94,191.93,0.1]
[1761389451856,1.66723071,191.94,191.93,5.31023289]
[1761389456866,2.60667775,191.94,191.93,5.31023289]
[1761389458060,3.28667775,191.94,191.93,0.1]
[1761389458561,2.60667775,191.94,191.93,0.1]
[1761389460837,0.68,191.95,191.93,5.3101515]
[1761389461042,2.60667775,191.95,191.93,6.0201515]
[1761389461439,2.60667775,191.95,191.93,5.3101515]
[1761389461943,2.60667775,191.95,191.93,6.0201515]
[1761389462145,2.60667775,191.95,191.93,5.3101515]
[1761389462467,2.60667775,191.95,191.94,0.71]
[1761389462636,2.60667775,191.95,191.93,5.3101515]
[1761389462833,2.60667775,191.95,191.93,6.0201515]
[1761389463049,11.55647521,191.97,191.93,6.0201515]
[1761389463262,2.60667775,191.95,191.93,5.3101515]
[1761389464062,2.60667775,191.94,191.93,0.1]
[1761389467776,2.60667775,191.94,191.93,0.81]
[1761389468144,2.60667775,191.94,191.93,0.1]
[1761389470072,14.16315296,191.94,191.93,0.1]
[1761389470578,18.04736409,191.94,191.93,0.1]
[1761389470959,23.25732553,191.94,191.93,0.1]
[1761389474369,20.65064778,191.94,191.93,0.1]
[1761389474576,23.25732553,191.94,191.93,0.1]
[1761389478177,23.25068255,191.94,191.93,0.1]
[1761389481583,10.87647521,191.94,191.93,0.79]
[1761389481881,13.48315296,191.94,191.93,0.1]
[1761389482186,13.48315296,191.94,191.93,0.79]
[1761389482366,13.48315296,191.94,191.93,0.1]
[1761389483757,13.48315296,191.94,191.93,0.79]
[1761389484477,13.48315296,191.94,191.93,0.1]
[1761389484673,14.17315296,191.94,191.93,0.1]
[1761389485981,13.48315296,191.94,191.93,0.1]
[1761389487768,19.3831144,191.94,191.93,0.1]
[1761389487960,23.26305733,191.94,191.93,0.1]
[1761389488676,59.40305733,191.94,191.93,0.1]
[1761389495485,33.75647521,191.91,191.9,0.1]
[1761389495791,72.50315296,191.91,191.9,0.1]
[1761389497084,76.38412584,191.91,191.9,0.1]
[1761389497289,72.50315296,191.91,191.9,0.1]
[1761389497583,78.40392884,191.91,191.9,0.1]
[1761389497973,77.71392884,191.91,191.9,0.1]
[1761389500974,2.77664806,191.96,191.9,0.79]
[1761389501193,6.48944138,191.95,191.9,6.00104742]
[1761389501395,10.87647521,191.95,191.9,23.72133887]